Departmental Area,Entity,Payment Date,Expense type,Expense Area,Supplier Name,Payment Reference,   Invoice Distribution Amount   ,Description,Supplier Type,Expenditure Type
UK Statistics Family,Office for National Statistics,01/02/2022,Specialist User Software And Hardware,Census & Soc Methodology Dd,University of Southampton,220269,"27,662.40",Information Management Services,SME,Programme Expenditure
UK Statistics Family,Office for National Statistics,01/02/2022,Exp - Purchase Of Goods/Services - Contractors,Digital Publishing,La International,220277,"3,203.88",Information Management Services,SME,Programme Expenditure
UK Statistics Family,Office for National Statistics,01/02/2022,Exp - Purchase Of Goods/Services - Contractors,Data Architecture,La International,220277,"4,131.18",Information Management Services,SME,Programme Expenditure
UK Statistics Family,Office for National Statistics,01/02/2022,Exp - Purchase Of Goods/Services - Contractors,Data Architecture,La International,220277,"5,573.65",Information Management Services,SME,Programme Expenditure
UK Statistics Family,Office for National Statistics,01/02/2022,Exp - Purchase Of Goods/Services - Contractors,Tech Delivery Data As A Platform,La International,220277,"2,870.64",Information Management Services,SME,Programme Expenditure
UK Statistics Family,Office for National Statistics,01/02/2022,Exp - Purchase Of Goods/Services - Contractors,IT Operations,La International,220277,"9,859.32",Information Management Services,SME,Programme Expenditure
UK Statistics Family,Office for National Statistics,01/02/2022,Exp - Purchase Of Goods/Services - IT Contractual Services,CDIO UNGP,Amazon Web Services Inc,220287,"46,033.32",Information Management Services,Large,Programme Expenditure
UK Statistics Family,Office for National Statistics,02/02/2022,Exp - Purchase Of Goods/Services - IT Contractual Services,Tech Delivery Data As A Platform,Kainos,220312,"91,205.29",Information Management Services,Large,Programme Expenditure
UK Statistics Family,Office for National Statistics,02/02/2022,Exp - Purchase Of Goods/Services - Contractors,Strategy And Architecture,Certes Computing Ltd,220318,"35,076.00",Information Management Services,SME,Programme Expenditure
UK Statistics Family,Office for National Statistics,02/02/2022,Exp - Purchase Of Goods/Services - Contractors,Tech Delivery Next Gen IT And Infrastructure,Certes Computing Ltd,220318,"38,400.00",Information Management Services,SME,Programme Expenditure
UK Statistics Family,Office for National Statistics,02/02/2022,Exp - Purchase Of Goods/Services - IT Contractual Services,Tech Delivery Next Gen IT And Infrastructure,Certes Computing Ltd,220318,"24,000.00",Information Management Services,SME,Programme Expenditure
UK Statistics Family,Office for National Statistics,02/02/2022,Exp - Purchase Of Goods/Services - Contractors,IT Operations,Certes Computing Ltd,220318,"14,220.00",Information Management Services,SME,Programme Expenditure
UK Statistics Family,Office for National Statistics,02/02/2022,Exp - Purchase Of Goods/Services - Contractors,IT Operations,Certes Computing Ltd,220318,"20,276.93",Information Management Services,SME,Programme Expenditure
UK Statistics Family,Office for National Statistics,02/02/2022,Exp - Purchase Of Goods/Services - Contractors,Business Architecture,La International,220319,"6,581.77",Information Management Services,SME,Programme Expenditure
UK Statistics Family,Office for National Statistics,02/02/2022,Exp - Purchase Of Goods/Services - Contractors,Testing,La International,220319,"20,946.00",Information Management Services,SME,Programme Expenditure
UK Statistics Family,Office for National Statistics,02/02/2022,Exp - Purchase Of Goods/Services - Contractors,Testing,La International,220319,"8,562.36",Information Management Services,SME,Programme Expenditure
UK Statistics Family,Office for National Statistics,02/02/2022,Exp - Purchase Of Goods/Services - Contractors,Testing,La International,220319,"7,135.30",Information Management Services,SME,Programme Expenditure
UK Statistics Family,Office for National Statistics,02/02/2022,Exp - Purchase Of Goods/Services - Contractors,Consultancy Management,La International,220319,"3,229.48",Information Management Services,SME,Programme Expenditure
UK Statistics Family,Office for National Statistics,02/02/2022,Exp - Purchase Of Goods/Services - Contractors,Covid Infection Survey,La International,220319,"3,317.65",Information Management Services,SME,Programme Expenditure
UK Statistics Family,Office for National Statistics,02/02/2022,Exp - Purchase Of Goods/Services - Contractors,STRATEGY SYNTHESIS AND CO-ORDINATION,La International,220319,"2,525.52",Information Management Services,SME,Programme Expenditure
UK Statistics Family,Office for National Statistics,02/02/2022,Exp - Purchase Of Goods/Services - Contractors,ANALYTICAL ENGAGEMENT AND IMPACT,La International,220319,"6,900.00",Information Management Services,SME,Programme Expenditure
UK Statistics Family,Office for National Statistics,02/02/2022,Exp - Purchase Of Goods/Services - Contractors,Data Architecture,La International,220319,"7,827.00",Information Management Services,SME,Programme Expenditure
UK Statistics Family,Office for National Statistics,02/02/2022,Exp - Purchase Of Goods/Services - Contractors,Tech Delivery Data As A Platform,La International,220319,"4,165.02",Information Management Services,SME,Programme Expenditure
UK Statistics Family,Office for National Statistics,02/02/2022,Exp - Purchase Of Goods/Services - Contractors,IT Applications,La International,220319,"11,565.84",Information Management Services,SME,Programme Expenditure
UK Statistics Family,Office for National Statistics,02/02/2022,Exp - Purchase Of Goods/Services - Contractors,Office Of Chief Data And Information,La International,220319,"1,198.80",Information Management Services,SME,Programme Expenditure
UK Statistics Family,Office for National Statistics,02/02/2022,Print & Post,Social Survey Transformation Newport,APS Group,220323,"52,129.22",Print and Post Services,Large,Programme Expenditure
UK Statistics Family,Office for National Statistics,02/02/2022,Exp - Purchase Of Goods/Services - Training & Development - Seminar & Conference Fees,Data As A Service,CTS (Cloud Technology Solutions Ltd),220342,"29,990.40",Training and Educational Services,Large,Programme Expenditure
UK Statistics Family,Office for National Statistics,03/02/2022,Shared Site Accommodation Ogds,Property Newport,Intellectual Property Office,220549,"89,000.00",Refund of Shared Building Maintenance Costs,Large,Programme Expenditure
UK Statistics Family,Office for National Statistics,03/02/2022,Telecoms,IT Operations,Bt Global Services,220551,"28,330.10",Telecommunications,Large,Programme Expenditure
UK Statistics Family,Office for National Statistics,03/02/2022,Surveys,Business Outputs And Developments,Iff Research,220565,"60,469.06",Statistical Services,Large,Programme Expenditure
UK Statistics Family,Office for National Statistics,03/02/2022,Exp - Purchase Of Goods/Services - Contractors,Programme Delivery,Malikshaw Interim & Executive,220566,"14,400.00",Information Management Services,SME,Programme Expenditure
UK Statistics Family,Office for National Statistics,03/02/2022,Exp - Purchase Of Goods/Services - Contractors,ANALYTICAL ENGAGEMENT AND IMPACT,Malikshaw Interim & Executive,220566,"11,880.00",Information Management Services,SME,Programme Expenditure
UK Statistics Family,Office for National Statistics,03/02/2022,Exp - Purchase Of Goods/Services - Contractors,IT Operations,Malikshaw Interim & Executive,220566,"35,771.77",Information Management Services,SME,Programme Expenditure
UK Statistics Family,Office for National Statistics,03/02/2022,Exp - Purchase Of Goods/Services - Contractors,IT Operations,Malikshaw Interim & Executive,220566,"13,977.60",Information Management Services,SME,Programme Expenditure
UK Statistics Family,Office for National Statistics,03/02/2022,Exp - Purchase Of Goods/Services - Contractors,Data As A Service,Malikshaw Interim & Executive,220566,"9,609.60",Information Management Services,SME,Programme Expenditure
UK Statistics Family,Office for National Statistics,03/02/2022,Exp - Purchase Of Goods/Services - Incentive Payments,Covid Infection Survey,Sodexo Motivation Solutions U.K. ltd,220570,"27,176.35",Survey Response Incentive Vouchers,Large,Programme Expenditure
UK Statistics Family,Office for National Statistics,03/02/2022,Exp - Purchase Of Goods/Services - Incentive Payments,Strategy And Engagement,Sodexo Motivation Solutions U.K. ltd,220570,187.51,Survey Response Incentive Vouchers,Large,Programme Expenditure
UK Statistics Family,Office for National Statistics,03/02/2022,Exp - Purchase Of Goods/Services - Incentive Payments,Survey Management,Sodexo Motivation Solutions U.K. ltd,220570,562.43,Survey Response Incentive Vouchers,Large,Programme Expenditure
UK Statistics Family,Office for National Statistics,04/02/2022,Buildings Under Construction,Property Newport,Vinci Construction UK Limited,220574,"669,962.40",Facilities Mangement Services,Large,Programme Expenditure
UK Statistics Family,Office for National Statistics,04/02/2022,Major Works Over 25K,Property Newport,Vinci Construction UK Limited,220574,"341,358.00",Facilities Mangement Services,Large,Programme Expenditure
UK Statistics Family,Office for National Statistics,04/02/2022,Capital Major Works >25K,Property Newport,Paramount Office Interiors Ltd,220583,"17,194.88",Buildings Maintenance,SME,Programme Expenditure
UK Statistics Family,Office for National Statistics,04/02/2022,Major Works Over 25K,Property Newport,Paramount Office Interiors Ltd,220583,"20,511.98",Buildings Maintenance,SME,Programme Expenditure
UK Statistics Family,Office for National Statistics,04/02/2022,Exp - Purchase Of Goods And Services Consultants,Digital Media,Methods Business & Digital Technology Ltd,220589,"86,880.00",Information Management Services,Large,Programme Expenditure
UK Statistics Family,Office for National Statistics,04/02/2022,Exp - Purchase Of Goods/Services - Contractors,Business Architecture,Talent International,220590,"11,405.76",Information Management Services,SME,Programme Expenditure
UK Statistics Family,Office for National Statistics,04/02/2022,Exp - Purchase Of Goods/Services - Contractors,Consultancy Management,Talent International,220590,"19,979.95",Information Management Services,SME,Programme Expenditure
UK Statistics Family,Office for National Statistics,04/02/2022,Exp - Purchase Of Goods/Services - Contractors,Digital Publishing,Talent International,220590,"13,679.77",Information Management Services,SME,Programme Expenditure
UK Statistics Family,Office for National Statistics,04/02/2022,Exp - Short-Term Contract & Agency Staff - Full Cost,Strategy And Engagement,Talent International,220590,"10,257.84",Information Management Services,SME,Programme Expenditure
UK Statistics Family,Office for National Statistics,04/02/2022,Exp - Short-Term Contract & Agency Staff - Full Cost,Strategy And Engagement,Talent International,220590,"3,890.51",Information Management Services,SME,Programme Expenditure
UK Statistics Family,Office for National Statistics,04/02/2022,Exp - Purchase Of Goods/Services - Contractors,BUSINESS STRATEGY PERFORMANCE AND PMO,Talent International,220590,"14,820.00",Information Management Services,SME,Programme Expenditure
UK Statistics Family,Office for National Statistics,04/02/2022,Exp - Short-Term Contract & Agency Staff - Full Cost,Data Architecture,Talent International,220590,601.70,Information Management Services,SME,Programme Expenditure
UK Statistics Family,Office for National Statistics,04/02/2022,Exp - Purchase Of Goods/Services - Contractors,Strategy And Architecture,Talent International,220590,"8,400.00",Information Management Services,SME,Programme Expenditure
UK Statistics Family,Office for National Statistics,04/02/2022,Exp - Purchase Of Goods/Services - Contractors,IT Operations,Talent International,220590,"16,178.40",Information Management Services,SME,Programme Expenditure
UK Statistics Family,Office for National Statistics,04/02/2022,Exp - Purchase Of Goods/Services - Contractors,IT Operations,Talent International,220590,"11,400.00",Information Management Services,SME,Programme Expenditure
UK Statistics Family,Office for National Statistics,04/02/2022,Exp - Purchase Of Goods/Services - Contractors,Digital Delivery,Talent International,220590,"2,875.20",Information Management Services,SME,Programme Expenditure
UK Statistics Family,Office for National Statistics,04/02/2022,Exp - Short-Term Contract & Agency Staff - Full Cost,Data Science Campus,Talent International,220590,"4,131.00",Information Management Services,SME,Programme Expenditure
UK Statistics Family,Office for National Statistics,04/02/2022,Exp - Purchase Of Goods/Services - Contractors,Data Science Campus,Talent International,220590,"15,960.00",Information Management Services,SME,Programme Expenditure
UK Statistics Family,Office for National Statistics,04/02/2022,Exp - Short-Term Contract & Agency Staff - Full Cost,Social Survey Transformation Titchfield,Talent International,220590,"4,528.80",Information Management Services,SME,Programme Expenditure
UK Statistics Family,Office for National Statistics,04/02/2022,Exp - Purchase Of Goods/Services - Incentive Payments,Covid Infection Survey,Sodexo Motivation Solutions U.K. ltd,220592,"76,032.35",Survey Response Incentive Vouchers,Large,Programme Expenditure
UK Statistics Family,Office for National Statistics,04/02/2022,Exp - Purchase Of Goods/Services - Incentive Payments,Census & Soc Methodology Dd,Sodexo Motivation Solutions U.K. ltd,220592,78.95,Survey Response Incentive Vouchers,Large,Programme Expenditure
UK Statistics Family,Office for National Statistics,04/02/2022,Exp - Purchase Of Goods/Services - Contractors,Consultancy Management,SmartSourcing Ltd,220593,"2,876.93",Information Management Services,SME,Programme Expenditure
UK Statistics Family,Office for National Statistics,04/02/2022,Exp - Short-Term Contract & Agency Staff - Full Cost,Learning And Capability,SmartSourcing Ltd,220593,"4,795.20",Information Management Services,SME,Programme Expenditure
UK Statistics Family,Office for National Statistics,04/02/2022,Exp - Purchase Of Goods/Services - Contractors,Tech Delivery Next Gen IT And Infrastructure,SmartSourcing Ltd,220593,"3,116.93",Information Management Services,SME,Programme Expenditure
UK Statistics Family,Office for National Statistics,04/02/2022,Exp - Purchase Of Goods/Services - Contractors,IT Operations,SmartSourcing Ltd,220593,"3,746.16",Information Management Services,SME,Programme Expenditure
UK Statistics Family,Office for National Statistics,04/02/2022,Exp - Purchase Of Goods/Services - Contractors,Digital Delivery,SmartSourcing Ltd,220593,"12,525.41",Information Management Services,SME,Programme Expenditure
UK Statistics Family,Office for National Statistics,04/02/2022,Exp - Purchase Of Goods/Services - Contractors,Data Science Campus,SmartSourcing Ltd,220593,"15,375.41",Information Management Services,SME,Programme Expenditure
UK Statistics Family,Office for National Statistics,04/02/2022,Other Goods And Services,Security Advisory,Cabinet Office,220596,"39,605.58",Security Vetting Services,Large,Programme Expenditure
UK Statistics Family,Office for National Statistics,04/02/2022,Marketing & Media,Stakeholder Engagement And Comms,Family & Education / iChild,220597,"32,498.40",Consultancy,SME,Programme Expenditure
UK Statistics Family,Office for National Statistics,07/02/2022,Surveys,Social Surveys Division,Natcen Social Research,220829,"577,819.84",Statistical Services,Large,Programme Expenditure
UK Statistics Family,Office for National Statistics,07/02/2022,Exp - Purchase Of Goods/Services - Contractors,Testing,La International,220836,"25,673.04",Information Management Services,SME,Programme Expenditure
UK Statistics Family,Office for National Statistics,07/02/2022,Exp - Purchase Of Goods/Services - Contractors,Testing,La International,220836,"4,281.18",Information Management Services,SME,Programme Expenditure
UK Statistics Family,Office for National Statistics,07/02/2022,Exp - Purchase Of Goods/Services - Contractors,Testing,La International,220836,"7,135.30",Information Management Services,SME,Programme Expenditure
UK Statistics Family,Office for National Statistics,07/02/2022,Exp - Purchase Of Goods/Services - Contractors,Consultancy Management,La International,220836,"2,511.82",Information Management Services,SME,Programme Expenditure
UK Statistics Family,Office for National Statistics,07/02/2022,Exp - Purchase Of Goods/Services - Contractors,Consultancy Management,La International,220836,"3,588.30",Information Management Services,SME,Programme Expenditure
UK Statistics Family,Office for National Statistics,07/02/2022,Exp - Purchase Of Goods/Services - Contractors,Digital Publishing,La International,220836,"2,563.10",Information Management Services,SME,Programme Expenditure
UK Statistics Family,Office for National Statistics,07/02/2022,Exp - Purchase Of Goods/Services - Contractors,STRATEGY SYNTHESIS AND CO-ORDINATION,La International,220836,"2,525.52",Information Management Services,SME,Programme Expenditure
UK Statistics Family,Office for National Statistics,07/02/2022,Exp - Purchase Of Goods/Services - Contractors,ANALYTICAL ENGAGEMENT AND IMPACT,La International,220836,"3,450.00",Information Management Services,SME,Programme Expenditure
UK Statistics Family,Office for National Statistics,07/02/2022,Exp - Purchase Of Goods/Services - Contractors,Data Architecture,La International,220836,"8,084.13",Information Management Services,SME,Programme Expenditure
UK Statistics Family,Office for National Statistics,07/02/2022,Exp - Purchase Of Goods/Services - Contractors,Data Architecture,La International,220836,"7,963.56",Information Management Services,SME,Programme Expenditure
UK Statistics Family,Office for National Statistics,07/02/2022,Exp - Purchase Of Goods/Services - Contractors,Data Architecture,La International,220836,"2,568.71",Information Management Services,SME,Programme Expenditure
UK Statistics Family,Office for National Statistics,07/02/2022,Exp - Purchase Of Goods/Services - Contractors,CLOUD ARCHITECTURE,La International,220836,"12,174.66",Information Management Services,SME,Programme Expenditure
UK Statistics Family,Office for National Statistics,07/02/2022,Exp - Purchase Of Goods/Services - Contractors,Tech Delivery Legacy Sp,La International,220836,"42,507.68",Information Management Services,SME,Programme Expenditure
UK Statistics Family,Office for National Statistics,07/02/2022,Exp - Purchase Of Goods/Services - Contractors,IT Applications,La International,220836,"11,565.84",Information Management Services,SME,Programme Expenditure
UK Statistics Family,Office for National Statistics,07/02/2022,Exp - Purchase Of Goods/Services - Contractors,IT Operations,La International,220836,"6,014.70",Information Management Services,SME,Programme Expenditure
UK Statistics Family,Office for National Statistics,07/02/2022,Exp - Purchase Of Goods/Services - Contractors,Office Of Chief Data And Information,La International,220836,"1,198.80",Information Management Services,SME,Programme Expenditure
UK Statistics Family,Office for National Statistics,07/02/2022,"ICT Outsourcing, Maintenance And Support",Senior Management Team Design,Totalmobile Ltd,220840,"59,655.12",Software Licenses,SME,Programme Expenditure
UK Statistics Family,Office for National Statistics,07/02/2022,Exp - Purchase Of Goods/Services - Contractors,CLOUD ARCHITECTURE,Malikshaw Interim & Executive,220842,"11,520.00",Information Management Services,SME,Programme Expenditure
UK Statistics Family,Office for National Statistics,07/02/2022,Exp - Purchase Of Goods/Services - Contractors,Digital Delivery,Malikshaw Interim & Executive,220842,"18,672.00",Information Management Services,SME,Programme Expenditure
UK Statistics Family,Office for National Statistics,07/02/2022,Exp - Purchase Of Goods/Services - Contractors,CLOUD ARCHITECTURE,Talent International,220845,"14,040.00",Information Management Services,SME,Programme Expenditure
UK Statistics Family,Office for National Statistics,07/02/2022,Exp - Purchase Of Goods/Services - Contractors,CLOUD ARCHITECTURE,Talent International,220845,"7,020.00",Information Management Services,SME,Programme Expenditure
UK Statistics Family,Office for National Statistics,07/02/2022,Exp - Purchase Of Goods/Services - Contractors,Tech Delivery Legacy Sp,Talent International,220845,"14,820.00",Information Management Services,SME,Programme Expenditure
UK Statistics Family,Office for National Statistics,07/02/2022,Exp - Purchase Of Goods/Services - Incentive Payments,Social Survey Transformation Newport,Sodexo Motivation Solutions U.K. ltd,220847,"10,679.34",Survey Response Incentive Vouchers,Large,Programme Expenditure
UK Statistics Family,Office for National Statistics,07/02/2022,Exp - Purchase Of Goods/Services - Incentive Payments,Social Survey Transformation Newport,Sodexo Motivation Solutions U.K. ltd,220847,"6,448.44",Survey Response Incentive Vouchers,Large,Programme Expenditure
UK Statistics Family,Office for National Statistics,07/02/2022,Exp - Purchase Of Goods/Services - Incentive Payments,Survey Management,Sodexo Motivation Solutions U.K. ltd,220847,335.58,Survey Response Incentive Vouchers,Large,Programme Expenditure
UK Statistics Family,Office for National Statistics,07/02/2022,Exp - Purchase Of Goods/Services - Incentive Payments,Survey Management,Sodexo Motivation Solutions U.K. ltd,220847,897.90,Survey Response Incentive Vouchers,Large,Programme Expenditure
UK Statistics Family,Office for National Statistics,07/02/2022,Exp - Purchase Of Goods/Services - Incentive Payments,Survey Management,Sodexo Motivation Solutions U.K. ltd,220847,"17,420.52",Survey Response Incentive Vouchers,Large,Programme Expenditure
UK Statistics Family,Office for National Statistics,07/02/2022,Exp - Purchase Of Goods/Services - Incentive Payments,Survey Management,Sodexo Motivation Solutions U.K. ltd,220847,602.07,Survey Response Incentive Vouchers,Large,Programme Expenditure
UK Statistics Family,Office for National Statistics,07/02/2022,Exp - Purchase Of Goods/Services - Incentive Payments,Social Survey Transformation Newport,Sodexo Motivation Solutions U.K. ltd,220847,"79,412.74",Survey Response Incentive Vouchers,Large,Programme Expenditure
UK Statistics Family,Office for National Statistics,07/02/2022,Exp - Purchase Of Goods/Services - Incentive Payments,Social Survey Transformation Newport,Sodexo Motivation Solutions U.K. ltd,220847,"20,044.11",Survey Response Incentive Vouchers,Large,Programme Expenditure
UK Statistics Family,Office for National Statistics,07/02/2022,Exp - Purchase Of Goods/Services - Incentive Payments,Survey Management,Sodexo Motivation Solutions U.K. ltd,220847,"1,806.06",Survey Response Incentive Vouchers,Large,Programme Expenditure
UK Statistics Family,Office for National Statistics,07/02/2022,Exp - Purchase Of Goods/Services - Incentive Payments,Survey Management,Sodexo Motivation Solutions U.K. ltd,220847,"3,266.45",Survey Response Incentive Vouchers,Large,Programme Expenditure
UK Statistics Family,Office for National Statistics,07/02/2022,Exp - Purchase Of Goods/Services - Incentive Payments,Survey Management,Sodexo Motivation Solutions U.K. ltd,220847,"40,780.22",Survey Response Incentive Vouchers,Large,Programme Expenditure
UK Statistics Family,Office for National Statistics,07/02/2022,Exp - Purchase Of Goods/Services - Incentive Payments,Survey Management,Sodexo Motivation Solutions U.K. ltd,220847,"3,029.84",Survey Response Incentive Vouchers,Large,Programme Expenditure
UK Statistics Family,Office for National Statistics,07/02/2022,Exp - Purchase Of Goods/Services - Incentive Payments,Survey Management,Sodexo Motivation Solutions U.K. ltd,220847,"24,479.61",Survey Response Incentive Vouchers,Large,Programme Expenditure
UK Statistics Family,Office for National Statistics,07/02/2022,Exp - Purchase Of Goods/Services - Contractors,Data Architecture,SmartSourcing Ltd,220848,"14,384.64",Information Management Services,SME,Programme Expenditure
UK Statistics Family,Office for National Statistics,07/02/2022,Exp - Purchase Of Goods/Services - Contractors,Tech Delivery Data As A Platform,SmartSourcing Ltd,220848,"3,600.00",Information Management Services,SME,Programme Expenditure
UK Statistics Family,Office for National Statistics,07/02/2022,Exp - Purchase Of Goods/Services - Contractors,IT Operations,SmartSourcing Ltd,220848,"39,060.05",Information Management Services,SME,Programme Expenditure
UK Statistics Family,Office for National Statistics,07/02/2022,Exp - Purchase Of Goods/Services - Contractors,Commercial Services,Parity Resources Limited,220849,"4,261.32",Information Management Services,Large,Programme Expenditure
UK Statistics Family,Office for National Statistics,07/02/2022,Exp - Purchase Of Goods/Services - Contractors,CLOUD ARCHITECTURE,Parity Resources Limited,220849,"3,430.50",Information Management Services,Large,Programme Expenditure
UK Statistics Family,Office for National Statistics,07/02/2022,Exp - Purchase Of Goods/Services - Contractors,Strategy And Architecture,Parity Resources Limited,220849,"4,510.50",Information Management Services,Large,Programme Expenditure
UK Statistics Family,Office for National Statistics,07/02/2022,Exp - Purchase Of Goods/Services - Contractors,Strategy And Architecture,Parity Resources Limited,220849,"11,789.40",Information Management Services,Large,Programme Expenditure
UK Statistics Family,Office for National Statistics,07/02/2022,Exp - Purchase Of Goods/Services - Contractors,Tech Delivery Legacy Sp,Parity Resources Limited,220849,"4,600.50",Information Management Services,Large,Programme Expenditure
UK Statistics Family,Office for National Statistics,07/02/2022,Exp - Purchase Of Goods/Services - Contractors,IT Operations,Parity Resources Limited,220849,"14,670.72",Information Management Services,Large,Programme Expenditure
UK Statistics Family,Office for National Statistics,08/02/2022,Surveys,International Trade And Transactions,Mango Solutions,220857,16320,Information Management Services,SME,Programme Expenditure
UK Statistics Family,Office for National Statistics,08/02/2022,Surveys,International Trade And Transactions,Mango Solutions,220857,"31,824.00",Information Management Services,SME,Programme Expenditure
UK Statistics Family,Office for National Statistics,08/02/2022,Exp - Purchase Of Goods/Services - Incentive Payments,Survey Management,Park Retail Ltd,220858,"96,555.69",Survey Response Incentive Vouchers,Large,Programme Expenditure
UK Statistics Family,Office for National Statistics,08/02/2022,Exp - Purchase Of Goods/Services - Incentive Payments,Survey Management,Park Retail Ltd,220858,"13,196.97",Survey Response Incentive Vouchers,Large,Programme Expenditure
UK Statistics Family,Office for National Statistics,08/02/2022,Exp - Purchase Of Goods/Services - Incentive Payments,Survey Management,Park Retail Ltd,220858,"3,517.59",Survey Response Incentive Vouchers,Large,Programme Expenditure
UK Statistics Family,Office for National Statistics,08/02/2022,Exp - Purchase Of Goods/Services - Incentive Payments,Social Survey Transformation Newport,Park Retail Ltd,220858,181.58,Survey Response Incentive Vouchers,Large,Programme Expenditure
UK Statistics Family,Office for National Statistics,08/02/2022,Exp - Purchase Of Goods/Services - Contractors,Business Architecture,Concept Information Technology Ltd T/A Concept Resourcing,220859,"15,479.96",Information Management Services,Large,Programme Expenditure
UK Statistics Family,Office for National Statistics,08/02/2022,Exp - Short-Term Contract & Agency Staff - Full Cost,Covid Infection Survey,Concept Information Technology Ltd T/A Concept Resourcing,220859,"5,312.60",Information Management Services,Large,Programme Expenditure
UK Statistics Family,Office for National Statistics,08/02/2022,Exp - Short-Term Contract & Agency Staff - Full Cost,Covid Infection Survey,Concept Information Technology Ltd T/A Concept Resourcing,220859,"4,015.49",Information Management Services,Large,Programme Expenditure
UK Statistics Family,Office for National Statistics,08/02/2022,Exp - Short-Term Contract & Agency Staff - Full Cost,Strategy And Engagement,Concept Information Technology Ltd T/A Concept Resourcing,220859,"2,316.68",Information Management Services,Large,Programme Expenditure
UK Statistics Family,Office for National Statistics,08/02/2022,Exp - Short-Term Contract & Agency Staff - Full Cost,Data Architecture,Concept Information Technology Ltd T/A Concept Resourcing,220859,442.22,Information Management Services,Large,Programme Expenditure
UK Statistics Family,Office for National Statistics,08/02/2022,Exp - Short-Term Contract & Agency Staff - Full Cost,Prices Division,Concept Information Technology Ltd T/A Concept Resourcing,220859,"2,979.60",Information Management Services,Large,Programme Expenditure
UK Statistics Family,Office for National Statistics,08/02/2022,Exp - Short-Term Contract & Agency Staff - Full Cost,Prices Division,Concept Information Technology Ltd T/A Concept Resourcing,220859,"4,118.54",Information Management Services,Large,Programme Expenditure
UK Statistics Family,Office for National Statistics,08/02/2022,Exp - Short-Term Contract & Agency Staff - Full Cost,Prices Division,Concept Information Technology Ltd T/A Concept Resourcing,220859,"31,940.03",Information Management Services,Large,Programme Expenditure
UK Statistics Family,Office for National Statistics,08/02/2022,"ICT Outsourcing, Maintenance And Support",IT Operations,Scc,220860,"229,720.32",Software Licenses,Large,Programme Expenditure
UK Statistics Family,Office for National Statistics,08/02/2022,Exp - Purchase Of Goods/Services - IT Contractual Services,Digital Delivery,Methods Business & Digital Technology Ltd,220862,"55,680.00",Information Management Services,Large,Programme Expenditure
UK Statistics Family,Office for National Statistics,08/02/2022,"ICT Outsourcing, Maintenance And Support",CDIO UNGP,Bloom Procurement Services Ltd,220869,"65,115.77",Consultancy,Large,Programme Expenditure
UK Statistics Family,Office for National Statistics,08/02/2022,Exp - Purchase Of Goods/Services - Contractors,Testing,Parity Resources Limited,220871,"15,480.00",Information Management Services,Large,Programme Expenditure
UK Statistics Family,Office for National Statistics,08/02/2022,Exp - Purchase Of Goods/Services - Contractors,Security Advisory,Parity Resources Limited,220871,"20,659.39",Information Management Services,Large,Programme Expenditure
UK Statistics Family,Office for National Statistics,08/02/2022,Exp - Purchase Of Goods/Services - Contractors,CLOUD ARCHITECTURE,Parity Resources Limited,220871,"3,430.50",Information Management Services,Large,Programme Expenditure
UK Statistics Family,Office for National Statistics,08/02/2022,Exp - Purchase Of Goods/Services - Contractors,Strategy And Architecture,Parity Resources Limited,220871,"4,210.50",Information Management Services,Large,Programme Expenditure
UK Statistics Family,Office for National Statistics,08/02/2022,Exp - Purchase Of Goods/Services - Contractors,Tech Delivery Legacy Sp,Parity Resources Limited,220871,"4,600.50",Information Management Services,Large,Programme Expenditure
UK Statistics Family,Office for National Statistics,08/02/2022,Exp - Purchase Of Goods/Services - Contractors,IT Applications,Parity Resources Limited,220871,"28,259.46",Information Management Services,Large,Programme Expenditure
UK Statistics Family,Office for National Statistics,08/02/2022,Exp - Purchase Of Goods/Services - Contractors,IT Operations,Parity Resources Limited,220871,"23,031.56",Information Management Services,Large,Programme Expenditure
UK Statistics Family,Office for National Statistics,08/02/2022,Exp - Purchase Of Goods/Services - Contractors,Digital Delivery,Parity Resources Limited,220871,"3,870.00",Information Management Services,Large,Programme Expenditure
UK Statistics Family,Office for National Statistics,08/02/2022,Exp - Short-Term Contract & Agency Staff - Full Cost,Social Surveys Division,HMRC.,220872,"69,468.59",Temporary Staff,Large,Programme Expenditure
UK Statistics Family,Office for National Statistics,08/02/2022,Exp - Short-Term Contract & Agency Staff - Full Cost,Covid Infection Survey,Talent International,220874,"2,890.01",Information Management Services,SME,Programme Expenditure
UK Statistics Family,Office for National Statistics,08/02/2022,Exp - Purchase Of Goods/Services - Contractors,Strategy And Architecture,Talent International,220874,"19,380.00",Information Management Services,SME,Programme Expenditure
UK Statistics Family,Office for National Statistics,08/02/2022,Exp - Purchase Of Goods/Services - Contractors,Tech Delivery Next Gen IT And Infrastructure,Talent International,220874,"13,679.77",Information Management Services,SME,Programme Expenditure
UK Statistics Family,Office for National Statistics,08/02/2022,Exp - Purchase Of Goods/Services - Contractors,IT Applications,Talent International,220874,"28,477.20",Information Management Services,SME,Programme Expenditure
UK Statistics Family,Office for National Statistics,08/02/2022,"ICT Outsourcing, Maintenance And Support",Digital Publishing,Mekon LTD,220876,"26,334.00",Information Management Services,Large,Programme Expenditure
UK Statistics Family,Office for National Statistics,09/02/2022,Exp - Purchase Of Goods/Services - IT Contractual Services,Tech Delivery Next Gen IT And Infrastructure,Scc,220880,"1,620.00",Information Management Services,Large,Programme Expenditure
UK Statistics Family,Office for National Statistics,09/02/2022,End User Software And Hardware,IT Operations,Scc,220880,"1,078,491.22",Software Licenses,Large,Programme Expenditure
UK Statistics Family,Office for National Statistics,09/02/2022,Exp - Purchase Of Goods/Services - Contractors,Testing,Certes Computing Ltd,220887,"16,538.92",Information Management Services,SME,Programme Expenditure
UK Statistics Family,Office for National Statistics,09/02/2022,Exp - Purchase Of Goods/Services - Contractors,Security Advisory,Certes Computing Ltd,220887,"16,653.12",Information Management Services,SME,Programme Expenditure
UK Statistics Family,Office for National Statistics,09/02/2022,Exp - Purchase Of Goods/Services - Contractors,Security Advisory,Certes Computing Ltd,220887,"16,653.12",Information Management Services,SME,Programme Expenditure
UK Statistics Family,Office for National Statistics,09/02/2022,Exp - Purchase Of Goods/Services - Contractors,Security Advisory,Certes Computing Ltd,220887,"13,877.00",Information Management Services,SME,Programme Expenditure
UK Statistics Family,Office for National Statistics,09/02/2022,Exp - Purchase Of Goods/Services - Contractors,Strategy And Architecture,Certes Computing Ltd,220887,117.30,Information Management Services,SME,Programme Expenditure
UK Statistics Family,Office for National Statistics,09/02/2022,Exp - Purchase Of Goods/Services - Contractors,Commercial Services,Michael Page International Recruitment Ltd,220889,"26,457.30",Temporary Staff,Large,Programme Expenditure
UK Statistics Family,Office for National Statistics,09/02/2022,Exp - Purchase Of Goods/Services - IT Contractual Services,CLOUD ARCHITECTURE,CTS (Cloud Technology Solutions Ltd),220897,"21,753.00",DST Infrastructure Preparation,Large,Programme Expenditure
UK Statistics Family,Office for National Statistics,09/02/2022,Hosting,Tech Delivery Legacy Sp,CTS (Cloud Technology Solutions Ltd),220897,"76,950.00",DST Infrastructure Preparation,Large,Programme Expenditure
UK Statistics Family,Office for National Statistics,09/02/2022,Exp - Purchase Of Goods/Services - IT Contractual Services,Digital Publishing,Methods Business & Digital Technology Ltd,220901,"363,282.00",Information Management Services,Large,Programme Expenditure
UK Statistics Family,Office for National Statistics,09/02/2022,Exp - Purchase Of Goods/Services - Contractors,Covid Infection Survey,Talent International,220902,"12,480.00",Information Management Services,SME,Programme Expenditure
UK Statistics Family,Office for National Statistics,09/02/2022,Exp - Short-Term Contract & Agency Staff - Full Cost,STRATEGY SYNTHESIS AND CO-ORDINATION,Talent International,220902,"21,969.57",Information Management Services,SME,Programme Expenditure
UK Statistics Family,Office for National Statistics,09/02/2022,Exp - Short-Term Contract & Agency Staff - Full Cost,STRATEGY SYNTHESIS AND CO-ORDINATION,Talent International,220902,"5,162.83",Information Management Services,SME,Programme Expenditure
UK Statistics Family,Office for National Statistics,09/02/2022,Exp - Short-Term Contract & Agency Staff - Full Cost,Recruitment ,Talent International,220902,"4,106.64",Information Management Services,SME,Programme Expenditure
UK Statistics Family,Office for National Statistics,09/02/2022,Exp - Short-Term Contract & Agency Staff - Full Cost,Recruitment ,Talent International,220902,752.14,Information Management Services,SME,Programme Expenditure
UK Statistics Family,Office for National Statistics,09/02/2022,Exp - Short-Term Contract & Agency Staff - Full Cost,Recruitment ,Talent International,220902,"3,884.66",Information Management Services,SME,Programme Expenditure
UK Statistics Family,Office for National Statistics,09/02/2022,Exp - Short-Term Contract & Agency Staff - Full Cost,Census & Soc Methodology Dd,Talent International,220902,"5,159.16",Information Management Services,SME,Programme Expenditure
UK Statistics Family,Office for National Statistics,09/02/2022,Exp - Short-Term Contract & Agency Staff - Full Cost,Data Architecture,Talent International,220902,"14,099.48",Information Management Services,SME,Programme Expenditure
UK Statistics Family,Office for National Statistics,09/02/2022,Exp - Purchase Of Goods/Services - Contractors,Digital Delivery,Talent International,220902,"10,886.40",Information Management Services,SME,Programme Expenditure
UK Statistics Family,Office for National Statistics,09/02/2022,Exp - Purchase Of Goods/Services - Incentive Payments,Social Survey Transformation Newport,Banner Group Ltd,220906,"117,000.00",Stationery,SME,Programme Expenditure
UK Statistics Family,Office for National Statistics,10/02/2022,Other Goods And Services,Crime Statistics,Natcen Social Research,221098,"48,349.63",Statistical Services,Large,Programme Expenditure
UK Statistics Family,Office for National Statistics,10/02/2022,"ICT Outsourcing, Maintenance And Support",IT Operations,Ibm United Kingdom Ltd,221101,"33,837.60",Information Management Services,Large,Programme Expenditure
UK Statistics Family,Office for National Statistics,10/02/2022,Exp - Purchase Of Goods/Services - IT Contractual Services,IT Operations,Ibm United Kingdom Ltd,221102,"40,632.48",Information Management Services,Large,Programme Expenditure
UK Statistics Family,Office for National Statistics,10/02/2022,Exp - Purchase Of Goods/Services - Contractors,Testing,Malikshaw Interim & Executive,221109,"17,018.57",Information Management Services,SME,Programme Expenditure
UK Statistics Family,Office for National Statistics,10/02/2022,Exp - Short-Term Contract & Agency Staff - Full Cost,Covid Infection Survey,Malikshaw Interim & Executive,221109,"2,844.84",Information Management Services,SME,Programme Expenditure
UK Statistics Family,Office for National Statistics,10/02/2022,Exp - Short-Term Contract & Agency Staff - Full Cost,Strategy And Engagement,Malikshaw Interim & Executive,221109,"4,374.29",Information Management Services,SME,Programme Expenditure
UK Statistics Family,Office for National Statistics,10/02/2022,Exp - Short-Term Contract & Agency Staff - Full Cost,Data Architecture,Malikshaw Interim & Executive,221109,"4,149.14",Information Management Services,SME,Programme Expenditure
UK Statistics Family,Office for National Statistics,10/02/2022,Exp - Purchase Of Goods/Services - Contractors,Data Science Campus,Malikshaw Interim & Executive,221109,"16,598.40",Information Management Services,SME,Programme Expenditure
UK Statistics Family,Office for National Statistics,10/02/2022,Exp - Purchase Of Goods/Services - Contractors,Data As A Service,Malikshaw Interim & Executive,221109,"10,848.00",Information Management Services,SME,Programme Expenditure
UK Statistics Family,Office for National Statistics,10/02/2022,Exp - Purchase Of Goods/Services - Contractors,International Trade And Transactions,Talent International,221112,"7,560.00",Information Management Services,SME,Programme Expenditure
UK Statistics Family,Office for National Statistics,10/02/2022,Exp - Short-Term Contract & Agency Staff - Full Cost,Data Architecture,Talent International,221112,752.14,Information Management Services,SME,Programme Expenditure
UK Statistics Family,Office for National Statistics,10/02/2022,Exp - Short-Term Contract & Agency Staff - Full Cost,Data Architecture,Talent International,221112,"12,185.80",Information Management Services,SME,Programme Expenditure
UK Statistics Family,Office for National Statistics,10/02/2022,Exp - Short-Term Contract & Agency Staff - Full Cost,Data Architecture,Talent International,221112,"2,883.52",Information Management Services,SME,Programme Expenditure
UK Statistics Family,Office for National Statistics,10/02/2022,Exp - Purchase Of Goods/Services - Contractors,Data Architecture,Talent International,221112,"24,990.00",Information Management Services,SME,Programme Expenditure
UK Statistics Family,Office for National Statistics,10/02/2022,Exp - Purchase Of Goods/Services - Incentive Payments,Covid Infection Survey,Sodexo Motivation Solutions U.K. ltd,221113,"2,251,110.98",Survey Response Incentive Vouchers,Large,Programme Expenditure
UK Statistics Family,Office for National Statistics,10/02/2022,Exp - Purchase Of Goods/Services - Incentive Payments,Census & Soc Methodology Dd,Sodexo Motivation Solutions U.K. ltd,221113,98.69,Survey Response Incentive Vouchers,Large,Programme Expenditure
UK Statistics Family,Office for National Statistics,10/02/2022,Exp - Purchase Of Goods/Services - Contractors,Business Architecture,LA FOSSE ASSOCIATES LIMITED,221114,"22,154.00",Information Management Services,Large,Programme Expenditure
UK Statistics Family,Office for National Statistics,10/02/2022,Exp - Purchase Of Goods/Services - Contractors,Business Architecture,LA FOSSE ASSOCIATES LIMITED,221114,"8,265.00",Information Management Services,Large,Programme Expenditure
UK Statistics Family,Office for National Statistics,10/02/2022,Exp - Purchase Of Goods/Services - Contractors,Business Architecture,LA FOSSE ASSOCIATES LIMITED,221114,"8,265.00",Information Management Services,Large,Programme Expenditure
UK Statistics Family,Office for National Statistics,10/02/2022,Exp - Purchase Of Goods/Services - Contractors,Testing,LA FOSSE ASSOCIATES LIMITED,221114,"13,300.00",Information Management Services,Large,Programme Expenditure
UK Statistics Family,Office for National Statistics,10/02/2022,Exp - Purchase Of Goods/Services - Contractors,Consultancy Management,LA FOSSE ASSOCIATES LIMITED,221114,"41,651.80",Information Management Services,Large,Programme Expenditure
UK Statistics Family,Office for National Statistics,10/02/2022,Exp - Purchase Of Goods/Services - Contractors,Consultancy Management,LA FOSSE ASSOCIATES LIMITED,221114,"7,020.00",Information Management Services,Large,Programme Expenditure
UK Statistics Family,Office for National Statistics,10/02/2022,Exp - Purchase Of Goods/Services - Contractors,Consultancy Management,LA FOSSE ASSOCIATES LIMITED,221114,11400,Information Management Services,Large,Programme Expenditure
UK Statistics Family,Office for National Statistics,10/02/2022,Exp - Purchase Of Goods/Services - Contractors,WIDER SURVEILLANCE STUDIES,LA FOSSE ASSOCIATES LIMITED,221114,"11,400.00",Information Management Services,Large,Programme Expenditure
UK Statistics Family,Office for National Statistics,10/02/2022,Exp - Purchase Of Goods/Services - Contractors,INTEGRATED DATA STRATEGY AND DELIVERY,LA FOSSE ASSOCIATES LIMITED,221114,"10,080.00",Information Management Services,Large,Programme Expenditure
UK Statistics Family,Office for National Statistics,10/02/2022,Exp - Purchase Of Goods/Services - Contractors,Data Architecture,LA FOSSE ASSOCIATES LIMITED,221114,15120,Information Management Services,Large,Programme Expenditure
UK Statistics Family,Office for National Statistics,10/02/2022,Exp - Purchase Of Goods/Services - Contractors,Tech Delivery Legacy Sp,LA FOSSE ASSOCIATES LIMITED,221114,"24,300.00",Information Management Services,Large,Programme Expenditure
UK Statistics Family,Office for National Statistics,10/02/2022,Exp - Purchase Of Goods/Services - Contractors,Digital Delivery,LA FOSSE ASSOCIATES LIMITED,221114,"13,680.00",Information Management Services,Large,Programme Expenditure
UK Statistics Family,Office for National Statistics,10/02/2022,Exp - Purchase Of Goods/Services - Contractors,Data As A Service,LA FOSSE ASSOCIATES LIMITED,221114,720.00,Information Management Services,Large,Programme Expenditure
UK Statistics Family,Office for National Statistics,10/02/2022,Exp - Purchase Of Goods/Services - Contractors,Researcher Support And Data Access ,Parity Resources Limited,221117,"13,680.00",Information Management Services,Large,Programme Expenditure
UK Statistics Family,Office for National Statistics,10/02/2022,Exp - Purchase Of Goods/Services - Contractors,Data Architecture,Parity Resources Limited,221117,"4,810.50",Information Management Services,Large,Programme Expenditure
UK Statistics Family,Office for National Statistics,10/02/2022,Exp - Purchase Of Goods/Services - Contractors,Data Architecture,Parity Resources Limited,221117,"13,262.76",Information Management Services,Large,Programme Expenditure
UK Statistics Family,Office for National Statistics,10/02/2022,Other Goods And Services,Census & Soc Methodology Dd,Alma Economics,221118,"37,440.00",Consultancy,Large,Programme Expenditure
UK Statistics Family,Office for National Statistics,11/02/2022,Exp - Purchase Of Goods/Services - Contractors,2023 CENSUS DATA TRANSFORMATION,La International,221232,"10,299.29",Information Management Services,SME,Programme Expenditure
UK Statistics Family,Office for National Statistics,11/02/2022,Exp - Purchase Of Goods/Services - Contractors,Business Architecture,La International,221232,"4,491.18",Information Management Services,SME,Programme Expenditure
UK Statistics Family,Office for National Statistics,11/02/2022,Exp - Purchase Of Goods/Services - Contractors,Testing,La International,221232,"24,370.94",Information Management Services,SME,Programme Expenditure
UK Statistics Family,Office for National Statistics,11/02/2022,Exp - Purchase Of Goods/Services - Contractors,Testing,La International,221232,856.24,Information Management Services,SME,Programme Expenditure
UK Statistics Family,Office for National Statistics,11/02/2022,Exp - Purchase Of Goods/Services - Contractors,Testing,La International,221232,"7,135.30",Information Management Services,SME,Programme Expenditure
UK Statistics Family,Office for National Statistics,11/02/2022,Exp - Purchase Of Goods/Services - Contractors,Consultancy Management,La International,221232,"3,588.30",Information Management Services,SME,Programme Expenditure
UK Statistics Family,Office for National Statistics,11/02/2022,Exp - Purchase Of Goods/Services - Contractors,Covid Infection Survey,La International,221232,"4,312.95",Information Management Services,SME,Programme Expenditure
UK Statistics Family,Office for National Statistics,11/02/2022,Exp - Purchase Of Goods/Services - Contractors,Digital Publishing,La International,221232,"3,293.40",Information Management Services,SME,Programme Expenditure
UK Statistics Family,Office for National Statistics,11/02/2022,Exp - Purchase Of Goods/Services - Contractors,STRATEGY SYNTHESIS AND CO-ORDINATION,La International,221232,"2,525.52",Information Management Services,SME,Programme Expenditure
UK Statistics Family,Office for National Statistics,11/02/2022,Exp - Purchase Of Goods/Services - Contractors,CLOUD ARCHITECTURE,La International,221232,"3,844.62",Information Management Services,SME,Programme Expenditure
UK Statistics Family,Office for National Statistics,11/02/2022,Hosting,CLOUD ARCHITECTURE,Amazon Web Services Inc,221241,"117,152.73",Information Management Services,Large,Programme Expenditure
UK Statistics Family,Office for National Statistics,11/02/2022,Hosting,CDIO UNGP,Amazon Web Services Inc,221241,"10,398.09",Information Management Services,Large,Programme Expenditure
UK Statistics Family,Office for National Statistics,11/02/2022,Hosting,IT Operations,Amazon Web Services Inc,221241,"133,245.51",Information Management Services,Large,Programme Expenditure
UK Statistics Family,Office for National Statistics,11/02/2022,Exp - Purchase Of Goods/Services - Contractors,Digital Publishing,Talent International,221242,"16,559.72",Information Management Services,SME,Programme Expenditure
UK Statistics Family,Office for National Statistics,11/02/2022,Exp - Purchase Of Goods/Services - Contractors,INTEGRATED DATA STRATEGY AND DELIVERY,Talent International,221242,"13,110.00",Information Management Services,SME,Programme Expenditure
UK Statistics Family,Office for National Statistics,11/02/2022,Exp - Short-Term Contract & Agency Staff - Full Cost,Data Architecture,Talent International,221242,451.28,Information Management Services,SME,Programme Expenditure
UK Statistics Family,Office for National Statistics,11/02/2022,Exp - Short-Term Contract & Agency Staff - Full Cost,Data Architecture,Talent International,221242,"3,459.83",Information Management Services,SME,Programme Expenditure
UK Statistics Family,Office for National Statistics,11/02/2022,Exp - Purchase Of Goods/Services - Contractors,Data Architecture,Talent International,221242,"35,280.00",Information Management Services,SME,Programme Expenditure
UK Statistics Family,Office for National Statistics,11/02/2022,Exp - Purchase Of Goods/Services - Contractors,Data Architecture,Talent International,221242,"39,837.12",Information Management Services,SME,Programme Expenditure
UK Statistics Family,Office for National Statistics,11/02/2022,Exp - Purchase Of Goods/Services - Contractors,PPP Operations,Talent International,221242,"18,000.00",Information Management Services,SME,Programme Expenditure
UK Statistics Family,Office for National Statistics,11/02/2022,Exp - Purchase Of Goods/Services - Incentive Payments,Social Survey Transformation Newport,Sodexo Motivation Solutions U.K. ltd,221243,"17,563.64",Survey Response Incentive Vouchers,Large,Programme Expenditure
UK Statistics Family,Office for National Statistics,11/02/2022,Exp - Purchase Of Goods/Services - Incentive Payments,Social Survey Transformation Newport,Sodexo Motivation Solutions U.K. ltd,221243,"4,772.26",Survey Response Incentive Vouchers,Large,Programme Expenditure
UK Statistics Family,Office for National Statistics,11/02/2022,Exp - Purchase Of Goods/Services - Incentive Payments,Survey Management,Sodexo Motivation Solutions U.K. ltd,221243,256.62,Survey Response Incentive Vouchers,Large,Programme Expenditure
UK Statistics Family,Office for National Statistics,11/02/2022,Exp - Purchase Of Goods/Services - Incentive Payments,Survey Management,Sodexo Motivation Solutions U.K. ltd,221243,858.50,Survey Response Incentive Vouchers,Large,Programme Expenditure
UK Statistics Family,Office for National Statistics,11/02/2022,Exp - Purchase Of Goods/Services - Incentive Payments,Survey Management,Sodexo Motivation Solutions U.K. ltd,221243,"9,425.85",Survey Response Incentive Vouchers,Large,Programme Expenditure
UK Statistics Family,Office for National Statistics,11/02/2022,Exp - Purchase Of Goods/Services - Incentive Payments,Survey Management,Sodexo Motivation Solutions U.K. ltd,221243,473.76,Survey Response Incentive Vouchers,Large,Programme Expenditure
UK Statistics Family,Office for National Statistics,11/02/2022,Exp - Purchase Of Goods/Services - Incentive Payments,Covid Infection Survey,Sodexo Motivation Solutions U.K. ltd,221243,"1,857.82",Survey Response Incentive Vouchers,Large,Programme Expenditure
UK Statistics Family,Office for National Statistics,11/02/2022,Exp - Purchase Of Goods/Services - Incentive Payments,Covid Infection Survey,Sodexo Motivation Solutions U.K. ltd,221243,"201,433.12",Survey Response Incentive Vouchers,Large,Programme Expenditure
UK Statistics Family,Office for National Statistics,11/02/2022,Exp - Purchase Of Goods/Services - Incentive Payments,Survey Management,Sodexo Motivation Solutions U.K. ltd,221243,"2,994.95",Survey Response Incentive Vouchers,Large,Programme Expenditure
UK Statistics Family,Office for National Statistics,11/02/2022,"ICT Outsourcing, Maintenance And Support",Data Architecture,Sandhill,221245,"116,100.00",Software Licenses,SME,Programme Expenditure
UK Statistics Family,Office for National Statistics,14/02/2022,FM Contract Payments,Vinci Payments,Vinci Construction UK Limited,221255,"68,513.53",Facilities Mangement Services,Large,Programme Expenditure
UK Statistics Family,Office for National Statistics,14/02/2022,Exp - Purchase Of Goods/Services - Contractors,CLOUD ARCHITECTURE,La International,221260,"13,328.07",Information Management Services,SME,Programme Expenditure
UK Statistics Family,Office for National Statistics,14/02/2022,Exp - Purchase Of Goods/Services - Contractors,IT Applications,La International,221260,"11,565.84",Information Management Services,SME,Programme Expenditure
UK Statistics Family,Office for National Statistics,14/02/2022,Exp - Purchase Of Goods/Services - Contractors,IT Operations,La International,221260,"4,476.85",Information Management Services,SME,Programme Expenditure
UK Statistics Family,Office for National Statistics,14/02/2022,Exp - Purchase Of Goods/Services - Contractors,Office Of Chief Data And Information,La International,221260,959.04,Information Management Services,SME,Programme Expenditure
UK Statistics Family,Office for National Statistics,14/02/2022,Exp - Purchase Of Goods/Services - Contractors,Testing,Malikshaw Interim & Executive,221263,"2,400.00",Information Management Services,SME,Programme Expenditure
UK Statistics Family,Office for National Statistics,14/02/2022,Exp - Purchase Of Goods/Services - Contractors,Digital Publishing,Malikshaw Interim & Executive,221263,"13,063.94",Information Management Services,SME,Programme Expenditure
UK Statistics Family,Office for National Statistics,14/02/2022,Exp - Purchase Of Goods/Services - Contractors,Digital Delivery,Malikshaw Interim & Executive,221263,"16,329.60",Information Management Services,SME,Programme Expenditure
UK Statistics Family,Office for National Statistics,14/02/2022,Exp - Purchase Of Goods/Services - Contractors,Data As A Service,Malikshaw Interim & Executive,221263,"11,356.80",Information Management Services,SME,Programme Expenditure
UK Statistics Family,Office for National Statistics,14/02/2022,Exp - Purchase Of Goods/Services - IT Contractual Services,Tech Delivery Legacy Sp,CTS (Cloud Technology Solutions Ltd),221264,"56,011.20",DST Infrastructure Preparation,Large,Programme Expenditure
UK Statistics Family,Office for National Statistics,14/02/2022,Exp - Purchase Of Goods/Services - Contractors,Data Architecture,Talent International,221267,"32,760.00",Information Management Services,SME,Programme Expenditure
UK Statistics Family,Office for National Statistics,14/02/2022,Exp - Purchase Of Goods/Services - Contractors,IT Operations,Talent International,221267,"15,600.00",Information Management Services,SME,Programme Expenditure
UK Statistics Family,Office for National Statistics,14/02/2022,Exp - Purchase Of Goods/Services - Contractors,Data Architecture,SmartSourcing Ltd,221273,"37,815.17",Information Management Services,SME,Programme Expenditure
UK Statistics Family,Office for National Statistics,14/02/2022,Exp - Purchase Of Goods/Services - Contractors,Data As A Service,SmartSourcing Ltd,221273,"6,299.92",Information Management Services,SME,Programme Expenditure
UK Statistics Family,Office for National Statistics,15/02/2022,Telecoms,IT Operations,Crown Hosting Data Centres Limited,221384,860.00,Information Management Services,SME,Programme Expenditure
UK Statistics Family,Office for National Statistics,15/02/2022,Hosting,IT Operations,Crown Hosting Data Centres Limited,221384,"74,001.63",Information Management Services,SME,Programme Expenditure
UK Statistics Family,Office for National Statistics,15/02/2022,FM Contract Payments,Vinci Payments,Vinci Construction UK Limited,221386,"67,620.09",Facilities Mangement Services,Large,Programme Expenditure
UK Statistics Family,Office for National Statistics,15/02/2022,Exp - Purchase Of Goods/Services - Contractors,Strategy And Architecture,Certes Computing Ltd,221394,"17,064.00",Information Management Services,SME,Programme Expenditure
UK Statistics Family,Office for National Statistics,15/02/2022,Exp - Purchase Of Goods/Services - Contractors,Strategy And Architecture,Certes Computing Ltd,221394,"34,652.40",Information Management Services,SME,Programme Expenditure
UK Statistics Family,Office for National Statistics,15/02/2022,Exp - Purchase Of Goods/Services - Contractors,Strategy And Architecture,Certes Computing Ltd,221394,"11,144.70",Information Management Services,SME,Programme Expenditure
UK Statistics Family,Office for National Statistics,15/02/2022,Exp - Purchase Of Goods/Services - Contractors,Tech Delivery Data As A Platform,Certes Computing Ltd,221394,"12,238.78",Information Management Services,SME,Programme Expenditure
UK Statistics Family,Office for National Statistics,15/02/2022,Exp - Purchase Of Goods/Services - Contractors,Tech Delivery Next Gen IT And Infrastructure,Certes Computing Ltd,221394,"18,240.00",Information Management Services,SME,Programme Expenditure
UK Statistics Family,Office for National Statistics,15/02/2022,Exp - Purchase Of Goods/Services - Contractors,IT Operations,Certes Computing Ltd,221394,"14,483.52",Information Management Services,SME,Programme Expenditure
UK Statistics Family,Office for National Statistics,15/02/2022,Exp - Purchase Of Goods/Services - Contractors,IT Operations,Certes Computing Ltd,221394,"16,200.00",Information Management Services,SME,Programme Expenditure
UK Statistics Family,Office for National Statistics,15/02/2022,Exp - Purchase Of Goods/Services - Contractors,Digital Delivery,Certes Computing Ltd,221394,"62,577.13",Information Management Services,SME,Programme Expenditure
UK Statistics Family,Office for National Statistics,15/02/2022,Exp - Purchase Of Goods/Services - Contractors,Digital Delivery,Certes Computing Ltd,221394,"14,398.56",Information Management Services,SME,Programme Expenditure
UK Statistics Family,Office for National Statistics,15/02/2022,Other Professional Services,Internal Audit,Pricewaterhousecoopers Llp,221396,"29,472.00",Consultancy,Large,Programme Expenditure
UK Statistics Family,Office for National Statistics,15/02/2022,Hospitality,Property Services,BaxterStorey,221401,"45,259.44",Catering Services,Large,Programme Expenditure
UK Statistics Family,Office for National Statistics,15/02/2022,Hospitality,Property Services,BaxterStorey,221401,"19,515.22",Catering Services,Large,Programme Expenditure
UK Statistics Family,Office for National Statistics,15/02/2022,"ICT Outsourcing, Maintenance And Support",CDIO UNGP,CTS (Cloud Technology Solutions Ltd),221403,"115,020.00",DST Infrastructure Preparation,Large,Programme Expenditure
UK Statistics Family,Office for National Statistics,15/02/2022,Hosting,IT Operations,CTS (Cloud Technology Solutions Ltd),221403,"130,041.77",DST Infrastructure Preparation,Large,Programme Expenditure
UK Statistics Family,Office for National Statistics,15/02/2022,Exp - Short-Term Contract & Agency Staff - Full Cost,Recruitment ,Talent International,221405,"3,674.36",Information Management Services,SME,Programme Expenditure
UK Statistics Family,Office for National Statistics,15/02/2022,Exp - Short-Term Contract & Agency Staff - Full Cost,Recruitment ,Talent International,221405,"3,884.66",Information Management Services,SME,Programme Expenditure
UK Statistics Family,Office for National Statistics,15/02/2022,Exp - Purchase Of Goods/Services - Contractors,Tech Delivery Legacy Sp,Talent International,221405,"18,217.20",Information Management Services,SME,Programme Expenditure
UK Statistics Family,Office for National Statistics,15/02/2022,Exp - Purchase Of Goods/Services - Incentive Payments,Covid Infection Survey,Sodexo Motivation Solutions U.K. ltd,221406,"25,620.73",Survey Response Incentive Vouchers,Large,Programme Expenditure
UK Statistics Family,Office for National Statistics,15/02/2022,Exp - Purchase Of Goods/Services - Contractors,Strategy And Architecture,LA FOSSE ASSOCIATES LIMITED,221407,"25,200.00",Information Management Services,Large,Programme Expenditure
UK Statistics Family,Office for National Statistics,16/02/2022,Telecoms,Covid Infection Survey,Vodafone Corporate Ltd,221419,"32,894.40",Telecommunications,Large,Programme Expenditure
UK Statistics Family,Office for National Statistics,16/02/2022,Surveys,Social Surveys Division,Natcen Social Research,221420,"26,901.22",Statistical Services,Large,Programme Expenditure
UK Statistics Family,Office for National Statistics,16/02/2022,Exp - Short-Term Contract & Agency Staff - Full Cost,Ask Business Services,Concept Information Technology Ltd T/A Concept Resourcing,221421,"-4,127.42",Information Management Services,Large,Programme Expenditure
UK Statistics Family,Office for National Statistics,16/02/2022,Exp - Short-Term Contract & Agency Staff - Full Cost,Data Architecture,Concept Information Technology Ltd T/A Concept Resourcing,221421,"2,732.72",Information Management Services,Large,Programme Expenditure
UK Statistics Family,Office for National Statistics,16/02/2022,Exp - Purchase Of Goods/Services - IT Contractual Services,Tech Delivery Legacy Sp,Concept Information Technology Ltd T/A Concept Resourcing,221421,"15,840.00",Information Management Services,Large,Programme Expenditure
UK Statistics Family,Office for National Statistics,16/02/2022,Exp - Short-Term Contract & Agency Staff - Full Cost,Public Sector And Households,Concept Information Technology Ltd T/A Concept Resourcing,221421,"7,801.57",Information Management Services,Large,Programme Expenditure
UK Statistics Family,Office for National Statistics,16/02/2022,Exp - Short-Term Contract & Agency Staff - Full Cost,Prices Division,Concept Information Technology Ltd T/A Concept Resourcing,221421,"2,800.75",Information Management Services,Large,Programme Expenditure
UK Statistics Family,Office for National Statistics,16/02/2022,Exp - Short-Term Contract & Agency Staff - Full Cost,Prices Division,Concept Information Technology Ltd T/A Concept Resourcing,221421,"1,043.56",Information Management Services,Large,Programme Expenditure
UK Statistics Family,Office for National Statistics,16/02/2022,Exp - Short-Term Contract & Agency Staff - Full Cost,Business Outputs And Developments,Concept Information Technology Ltd T/A Concept Resourcing,221421,"4,221.50",Information Management Services,Large,Programme Expenditure
UK Statistics Family,Office for National Statistics,16/02/2022,Exp - Purchase Of Goods/Services - Contractors,Security Advisory,Certes Computing Ltd,221424,"15,820.46",Information Management Services,SME,Programme Expenditure
UK Statistics Family,Office for National Statistics,16/02/2022,Exp - Purchase Of Goods/Services - Contractors,Tech Delivery Legacy Sp,Certes Computing Ltd,221424,"61,320.00",Information Management Services,SME,Programme Expenditure
UK Statistics Family,Office for National Statistics,16/02/2022,Print & Post,Social Surveys Division,APS Group,221427,"105,604.77",Print and Post Services,Large,Programme Expenditure
UK Statistics Family,Office for National Statistics,16/02/2022,Exp - Purchase Of Goods And Services Consultants,Digital Publishing,Methods Business & Digital Technology Ltd,221431,"157,801.51",Information Management Services,Large,Programme Expenditure
UK Statistics Family,Office for National Statistics,16/02/2022,Other Goods And Services,2023 CENSUS DATA TRANSFORMATION,The Sensible Code Company,221433,"39,696.08",Consultancy,SME,Programme Expenditure
UK Statistics Family,Office for National Statistics,16/02/2022,Other Goods And Services,Beyond 2021 Research And Design,The Sensible Code Company,221433,"270,803.92",Consultancy,SME,Programme Expenditure
UK Statistics Family,Office for National Statistics,17/02/2022,Exp - Purchase Of Goods/Services - Contractors,Tech Delivery Legacy Sp,LA FOSSE ASSOCIATES LIMITED,221679,"17,100.00",Information Management Services,Large,Programme Expenditure
UK Statistics Family,Office for National Statistics,17/02/2022,Exp - Purchase Of Goods/Services - Contractors,Digital Delivery,LA FOSSE ASSOCIATES LIMITED,221679,"13,680.00",Information Management Services,Large,Programme Expenditure
UK Statistics Family,Office for National Statistics,17/02/2022,Exp - Purchase Of Goods/Services - IT Contractual Services,Digital Publishing,Armakuni Ltd,221680,"165,690.00",Information Management Services,SME,Programme Expenditure
UK Statistics Family,Office for National Statistics,17/02/2022,Exp - Purchase Of Goods/Services - IT Contractual Services,Digital Publishing,Armakuni Ltd,221681,60795,Information Management Services,SME,Programme Expenditure
UK Statistics Family,Office for National Statistics,17/02/2022,Exp - Purchase Of Goods And Services Consultants,Security Advisory,Bridewell Consulting Limited,221682,205200,Consultancy,SME,Programme Expenditure
UK Statistics Family,Office for National Statistics,17/02/2022,Exp - Purchase Of Goods/Services - Contractors,Covid Infection Survey,Parity Resources Limited,221684,"7,185.12",Information Management Services,Large,Programme Expenditure
UK Statistics Family,Office for National Statistics,17/02/2022,Exp - Purchase Of Goods/Services - Contractors,Security Advisory,Parity Resources Limited,221684,"3,844.80",Information Management Services,Large,Programme Expenditure
UK Statistics Family,Office for National Statistics,17/02/2022,Exp - Purchase Of Goods/Services - Contractors,CLOUD ARCHITECTURE,Parity Resources Limited,221684,"3,430.50",Information Management Services,Large,Programme Expenditure
UK Statistics Family,Office for National Statistics,17/02/2022,Exp - Purchase Of Goods/Services - Contractors,Strategy And Architecture,Parity Resources Limited,221684,"9,021.00",Information Management Services,Large,Programme Expenditure
UK Statistics Family,Office for National Statistics,17/02/2022,Exp - Purchase Of Goods/Services - Contractors,Tech Delivery Legacy Sp,Parity Resources Limited,221684,"4,600.50",Information Management Services,Large,Programme Expenditure
UK Statistics Family,Office for National Statistics,17/02/2022,Exp - Purchase Of Goods/Services - Contractors,IT Operations,Parity Resources Limited,221684,"35,084.40",Information Management Services,Large,Programme Expenditure
UK Statistics Family,Office for National Statistics,17/02/2022,Exp - Purchase Of Goods/Services - Contractors,Digital Delivery,Parity Resources Limited,221684,"3,870.00",Information Management Services,Large,Programme Expenditure
UK Statistics Family,Office for National Statistics,17/02/2022,Surveys,Prices Division,Kantar Public UK Ltd.,221688,"207,757.00",Statistical Services,SME,Programme Expenditure
UK Statistics Family,Office for National Statistics,17/02/2022,Exp - Purchase Of Goods/Services - IT Contractual Services,CLOUD ARCHITECTURE,CTS (Cloud Technology Solutions Ltd),221699,"52,345.80",DST Infrastructure Preparation,Large,Programme Expenditure
UK Statistics Family,Office for National Statistics,18/02/2022,Exp - Purchase Of Goods/Services - Contractors,Digital Publishing,Concept Information Technology Ltd T/A Concept Resourcing,221706,"13,614.34",Information Management Services,Large,Programme Expenditure
UK Statistics Family,Office for National Statistics,18/02/2022,Exp - Short-Term Contract & Agency Staff - Full Cost,Business Change Support,Concept Information Technology Ltd T/A Concept Resourcing,221706,"3,386.68",Information Management Services,Large,Programme Expenditure
UK Statistics Family,Office for National Statistics,18/02/2022,Exp - Short-Term Contract & Agency Staff - Full Cost,Productivity Research And Professional Development,Concept Information Technology Ltd T/A Concept Resourcing,221706,"4,234.16",Information Management Services,Large,Programme Expenditure
UK Statistics Family,Office for National Statistics,18/02/2022,Exp - Purchase Of Goods And Services Consultants,Productivity Research And Professional Development,Concept Information Technology Ltd T/A Concept Resourcing,221706,"4,942.25",Information Management Services,Large,Programme Expenditure
UK Statistics Family,Office for National Statistics,18/02/2022,Exp - Purchase Of Goods And Services Consultants,Productivity Research And Professional Development,Concept Information Technology Ltd T/A Concept Resourcing,221706,"3,166.82",Information Management Services,Large,Programme Expenditure
UK Statistics Family,Office for National Statistics,18/02/2022,Exp - Purchase Of Goods And Services Consultants,Productivity Research And Professional Development,Concept Information Technology Ltd T/A Concept Resourcing,221706,"9,088.62",Information Management Services,Large,Programme Expenditure
UK Statistics Family,Office for National Statistics,18/02/2022,Exp - Purchase Of Goods And Services Consultants,Productivity Research And Professional Development,Concept Information Technology Ltd T/A Concept Resourcing,221706,"3,763.70",Information Management Services,Large,Programme Expenditure
UK Statistics Family,Office for National Statistics,18/02/2022,Exp - Short-Term Contract & Agency Staff - Full Cost,Ask Business Services,Concept Information Technology Ltd T/A Concept Resourcing,221706,-144.22,Information Management Services,Large,Programme Expenditure
UK Statistics Family,Office for National Statistics,18/02/2022,Exp - Short-Term Contract & Agency Staff - Full Cost,Social Surveys Division,Concept Information Technology Ltd T/A Concept Resourcing,221706,9678.58,Information Management Services,Large,Programme Expenditure
UK Statistics Family,Office for National Statistics,18/02/2022,Exp - Purchase Of Goods/Services - Incentive Payments,Covid Infection Survey,Sodexo Motivation Solutions U.K. ltd,221721,"223,412.27",Survey Response Incentive Vouchers,Large,Programme Expenditure
UK Statistics Family,Office for National Statistics,21/02/2022,Other Goods And Services,WIDER SURVEILLANCE STUDIES,London School of Hygiene & Tropical Medicine,221956,"90,000.00",Statistical Services,Large,Programme Expenditure
UK Statistics Family,Office for National Statistics,21/02/2022,Exp - Purchase Of Goods/Services - Contractors,CLOUD ARCHITECTURE,Certes Computing Ltd,221958,"14,603.40",Information Management Services,SME,Programme Expenditure
UK Statistics Family,Office for National Statistics,21/02/2022,Exp - Purchase Of Goods/Services - Contractors,Tech Delivery Legacy Sp,Certes Computing Ltd,221958,"17,400.00",Information Management Services,SME,Programme Expenditure
UK Statistics Family,Office for National Statistics,21/02/2022,Exp - Purchase Of Goods/Services - Contractors,IT Applications,Certes Computing Ltd,221958,"13,678.63",Information Management Services,SME,Programme Expenditure
UK Statistics Family,Office for National Statistics,21/02/2022,Exp - Purchase Of Goods/Services - Contractors,Digital Delivery,Certes Computing Ltd,221958,"14,359.44",Information Management Services,SME,Programme Expenditure
UK Statistics Family,Office for National Statistics,21/02/2022,Exp - Purchase Of Goods/Services - IT Contractual Services,IT Applications,Diegesis Limited,221959,"155,370.00",Information Management Services,Large,Programme Expenditure
UK Statistics Family,Office for National Statistics,21/02/2022,Exp - Purchase Of Goods/Services - IT Contractual Services,Digital Delivery,Armakuni Ltd,221960,"47,520.00",Information Management Services,SME,Programme Expenditure
UK Statistics Family,Office for National Statistics,21/02/2022,Exp - Purchase Of Goods/Services - IT Contractual Services,Strategy And Architecture,Chaucer Group Ltd,221962,"11,404.80",Information Management Services,SME,Programme Expenditure
UK Statistics Family,Office for National Statistics,21/02/2022,Exp - Purchase Of Goods/Services - IT Contractual Services,Strategy And Architecture,Chaucer Group Ltd,221962,"19,008.00",Information Management Services,SME,Programme Expenditure
UK Statistics Family,Office for National Statistics,22/02/2022,Exp - Purchase Of Goods/Services - Contractors,Digital Publishing,La International,221999,"29,319.55",Information Management Services,SME,Programme Expenditure
UK Statistics Family,Office for National Statistics,22/02/2022,Exp - Short-Term Contract & Agency Staff - Full Cost,Data Architecture,Malikshaw Interim & Executive,222003,"13,027.05",Information Management Services,SME,Programme Expenditure
UK Statistics Family,Office for National Statistics,22/02/2022,Exp - Purchase Of Goods/Services - Contractors,Data Architecture,Malikshaw Interim & Executive,222003,"14,400.00",Information Management Services,SME,Programme Expenditure
UK Statistics Family,Office for National Statistics,22/02/2022,Exp - Purchase Of Goods/Services - Incentive Payments,Social Survey Transformation Newport,Sodexo Motivation Solutions U.K. ltd,222008,"17,647.55",Survey Response Incentive Vouchers,Large,Programme Expenditure
UK Statistics Family,Office for National Statistics,22/02/2022,Exp - Purchase Of Goods/Services - Incentive Payments,Social Survey Transformation Newport,Sodexo Motivation Solutions U.K. ltd,222008,"4,722.96",Survey Response Incentive Vouchers,Large,Programme Expenditure
UK Statistics Family,Office for National Statistics,22/02/2022,Exp - Purchase Of Goods/Services - Incentive Payments,Survey Management,Sodexo Motivation Solutions U.K. ltd,222008,315.84,Survey Response Incentive Vouchers,Large,Programme Expenditure
UK Statistics Family,Office for National Statistics,22/02/2022,Exp - Purchase Of Goods/Services - Incentive Payments,Survey Management,Sodexo Motivation Solutions U.K. ltd,222008,"1,080.50",Survey Response Incentive Vouchers,Large,Programme Expenditure
UK Statistics Family,Office for National Statistics,22/02/2022,Exp - Purchase Of Goods/Services - Incentive Payments,Survey Management,Sodexo Motivation Solutions U.K. ltd,222008,"7,363.02",Survey Response Incentive Vouchers,Large,Programme Expenditure
UK Statistics Family,Office for National Statistics,22/02/2022,Exp - Purchase Of Goods/Services - Incentive Payments,Survey Management,Sodexo Motivation Solutions U.K. ltd,222008,838.95,Survey Response Incentive Vouchers,Large,Programme Expenditure
UK Statistics Family,Office for National Statistics,22/02/2022,Exp - Purchase Of Goods/Services - Incentive Payments,GSS Strategy Delivery,Sodexo Motivation Solutions U.K. ltd,222008,69.09,Survey Response Incentive Vouchers,Large,Programme Expenditure
UK Statistics Family,Office for National Statistics,22/02/2022,Exp - Purchase Of Goods/Services - Incentive Payments,Survey Management,Sodexo Motivation Solutions U.K. ltd,222008,"3,350.17",Survey Response Incentive Vouchers,Large,Programme Expenditure
UK Statistics Family,Office for National Statistics,22/02/2022,Telecoms,Tech Delivery Next Gen IT And Infrastructure,Freedom Communications (UK) Ltd,222012,"2,899.57",Telecommunications,Large,Programme Expenditure
UK Statistics Family,Office for National Statistics,22/02/2022,Telecoms,IT Operations,Freedom Communications (UK) Ltd,222012,"30,447.57",Telecommunications,Large,Programme Expenditure
UK Statistics Family,Office for National Statistics,22/02/2022,Exp - Purchase Of Goods/Services - Contractors,Digital Publishing,Talent International,222016,"12,768.00",Information Management Services,SME,Programme Expenditure
UK Statistics Family,Office for National Statistics,22/02/2022,Exp - Purchase Of Goods/Services - Contractors,CLOUD ARCHITECTURE,Talent International,222016,"17,077.20",Information Management Services,SME,Programme Expenditure
UK Statistics Family,Office for National Statistics,22/02/2022,Exp - Purchase Of Goods/Services - Contractors,Tech Delivery Next Gen IT And Infrastructure,Talent International,222016,"2,400.00",Information Management Services,SME,Programme Expenditure
UK Statistics Family,Office for National Statistics,22/02/2022,Other Goods And Services,Business Change Support,Department for Work and Pensions,222017,"28,004.40",Statistical Services,Large,Programme Expenditure
UK Statistics Family,Office for National Statistics,23/02/2022,"ICT Outsourcing, Maintenance And Support",Covid Infection Survey,Equiniti Limited,222024,"3,444.00",Information Management Services,Large,Programme Expenditure
UK Statistics Family,Office for National Statistics,23/02/2022,"ICT Outsourcing, Maintenance And Support",Covid Infection Survey,Equiniti Limited,222024,"14,549.86",Information Management Services,Large,Programme Expenditure
UK Statistics Family,Office for National Statistics,23/02/2022,"ICT Outsourcing, Maintenance And Support",Researcher Support And Data Access ,Equiniti Limited,222024,"158,367.37",Information Management Services,Large,Programme Expenditure
UK Statistics Family,Office for National Statistics,23/02/2022,Hosting,Researcher Support And Data Access ,Equiniti Limited,222024,"51,041.75",Information Management Services,Large,Programme Expenditure
UK Statistics Family,Office for National Statistics,23/02/2022,Exp - Purchase Of Goods/Services - Contractors,Data Architecture,Certes Computing Ltd,222026,"15,435.64",Information Management Services,SME,Programme Expenditure
UK Statistics Family,Office for National Statistics,23/02/2022,Exp - Purchase Of Goods/Services - Contractors,Data As A Service,Certes Computing Ltd,222026,"17,421.60",Information Management Services,SME,Programme Expenditure
UK Statistics Family,Office for National Statistics,23/02/2022,Exp - Purchase Of Goods/Services - Contractors,Digital Publishing,La International,222027,"23,429.66",Information Management Services,SME,Programme Expenditure
UK Statistics Family,Office for National Statistics,23/02/2022,Exp - Purchase Of Goods/Services - Contractors,Data Architecture,La International,222027,"3,982.38",Information Management Services,SME,Programme Expenditure
UK Statistics Family,Office for National Statistics,23/02/2022,Exp - Short-Term Contract & Agency Staff - Full Cost,Data Architecture,Malikshaw Interim & Executive,222029,"30,855.43",Information Management Services,SME,Programme Expenditure
UK Statistics Family,Office for National Statistics,23/02/2022,Exp - Purchase Of Goods/Services - Contractors,Data Architecture,Malikshaw Interim & Executive,222029,"16,598.40",Information Management Services,SME,Programme Expenditure
UK Statistics Family,Office for National Statistics,23/02/2022,Exp - Purchase Of Goods/Services - Contractors,Data As A Service,Malikshaw Interim & Executive,222029,"18,072.00",Information Management Services,SME,Programme Expenditure
UK Statistics Family,Office for National Statistics,23/02/2022,Exp - Purchase Of Goods And Services Consultants,Digital Media,Methods Business & Digital Technology Ltd,222032,"52,529.26",Information Management Services,Large,Programme Expenditure
UK Statistics Family,Office for National Statistics,23/02/2022,Exp - Purchase Of Goods/Services - Contractors,Digital Publishing,Talent International,222033,"11,700.00",Information Management Services,SME,Programme Expenditure
UK Statistics Family,Office for National Statistics,23/02/2022,Exp - Short-Term Contract & Agency Staff - Full Cost,Data Architecture,Talent International,222033,"2,797.13",Information Management Services,SME,Programme Expenditure
UK Statistics Family,Office for National Statistics,23/02/2022,Exp - Purchase Of Goods/Services - Contractors,Data Architecture,Talent International,222033,"29,759.81",Information Management Services,SME,Programme Expenditure
UK Statistics Family,Office for National Statistics,23/02/2022,Exp - Purchase Of Goods/Services - Contractors,Data As A Service,Talent International,222033,"17,100.00",Information Management Services,SME,Programme Expenditure
UK Statistics Family,Office for National Statistics,23/02/2022,"ICT Outsourcing, Maintenance And Support",Researcher Support And Data Access ,Equiniti-TopLevel,222036,"22,302.72",Information Management Services,SME,Programme Expenditure
UK Statistics Family,Office for National Statistics,23/02/2022,Hosting,IT Operations,Equiniti-TopLevel,222036,"4,734.00",Information Management Services,SME,Programme Expenditure
UK Statistics Family,Office for National Statistics,23/02/2022,Exp - Purchase Of Goods/Services - Contractors,Consultancy Management,Parity Resources Limited,222037,"4,019.13",Information Management Services,Large,Programme Expenditure
UK Statistics Family,Office for National Statistics,23/02/2022,Exp - Purchase Of Goods/Services - Contractors,Covid Infection Survey,Parity Resources Limited,222037,"2,095.66",Information Management Services,Large,Programme Expenditure
UK Statistics Family,Office for National Statistics,23/02/2022,Exp - Short-Term Contract & Agency Staff - Full Cost,Recruitment ,Parity Resources Limited,222037,"1,417.68",Information Management Services,Large,Programme Expenditure
UK Statistics Family,Office for National Statistics,23/02/2022,Exp - Purchase Of Goods/Services - Contractors,Data Architecture,Parity Resources Limited,222037,13431.6,Information Management Services,Large,Programme Expenditure
UK Statistics Family,Office for National Statistics,23/02/2022,Exp - Purchase Of Goods/Services - Contractors,CLOUD ARCHITECTURE,Parity Resources Limited,222037,"3,430.50",Information Management Services,Large,Programme Expenditure
UK Statistics Family,Office for National Statistics,23/02/2022,Exp - Purchase Of Goods/Services - Contractors,Tech Delivery Legacy Sp,Parity Resources Limited,222037,"4,600.50",Information Management Services,Large,Programme Expenditure
UK Statistics Family,Office for National Statistics,23/02/2022,Exp - Purchase Of Goods/Services - Contractors,IT Operations,Parity Resources Limited,222037,"15,672.00",Information Management Services,Large,Programme Expenditure
UK Statistics Family,Office for National Statistics,23/02/2022,Exp - Purchase Of Goods/Services - IT Contractual Services,CDIO UNGP,Digital Modus Ltd,222039,"212,460.00",Information Management Services,SME,Programme Expenditure
UK Statistics Family,Office for National Statistics,01/02/2022,Surveys,Covid Infection Survey,IQVIA Limited,30003209,"2,389,866.38",Statistical Services,Large,Programme Expenditure
UK Statistics Family,Office for National Statistics,02/02/2022,Exp - Purchase Of Goods/Services - Incentive Payments,Covid Infection Survey,Sodexo Motivation Solutions U.K. ltd,30003211,"85,144.80",Survey Response Incentive Vouchers,Large,Programme Expenditure
UK Statistics Family,Office for National Statistics,02/02/2022,Vat Liability,VAT,HMRC.,30003212,"4,195,527.41",VAT Payable to HMRC,Large,Programme Expenditure
UK Statistics Family,Office for National Statistics,03/02/2022,Exp - Purchase Of Goods/Services - Incentive Payments,Covid Infection Survey,Sodexo Motivation Solutions U.K. ltd,30003213,"2,207,860.95",Survey Response Incentive Vouchers,Large,Programme Expenditure
UK Statistics Family,Office for National Statistics,04/02/2022,Electricity,Property Newport,Edf Energy,30003214,"25,225.33",Utility Charges,Large,Programme Expenditure
UK Statistics Family,Office for National Statistics,09/02/2022,Exp - Purchase Of Goods/Services - Incentive Payments,Covid Infection Survey,Sodexo Motivation Solutions U.K. ltd,30003216,"79,568.81",Survey Response Incentive Vouchers,Large,Programme Expenditure
UK Statistics Family,Office for National Statistics,09/02/2022,Stationery,Lodgecard,Royal Bank of Scotland,30003217,"6,977.44",Multiple Procurement Card Purchases  - Stationery ,Large,Programme Expenditure
UK Statistics Family,Office for National Statistics,09/02/2022,Other Goods And Services,GPC,Royal Bank of Scotland,30003217,"75,861.40",Multiple Procurement Card Purchases - other goods/services  ,Large,Programme Expenditure
UK Statistics Family,Office for National Statistics,09/02/2022,Travel And Subsistence,Car Hire,Royal Bank of Scotland,30003217,"3,921.67",Multiple Procurement Card Purchases - Vehicle Hire  ,Large,Programme Expenditure
UK Statistics Family,Office for National Statistics,16/02/2022,Electricity,Property Newport,Edf Energy,30003220,"26,831.47",Utility Charges,Large,Programme Expenditure
UK Statistics Family,Office for National Statistics,16/02/2022,Exp - Purchase Of Goods/Services - Incentive Payments,Covid Infection Survey,Sodexo Motivation Solutions U.K. ltd,30003221,"208,951.40",Survey Response Incentive Vouchers,Large,Programme Expenditure
UK Statistics Family,Office for National Statistics,17/02/2022,Exp - Purchase Of Goods/Services - Incentive Payments,Covid Infection Survey,Sodexo Motivation Solutions U.K. ltd,30003229,"166,070.60",Survey Response Incentive Vouchers,Large,Programme Expenditure
UK Statistics Family,Office for National Statistics,23/02/2022,Surveys,Covid Infection Survey,IQVIA Limited,30003294,"21,120,000.00",Statistical Services,Large,Programme Expenditure
UK Statistics Family,Office for National Statistics,25/02/2022,Surveys,Covid Infection Survey,IQVIA Limited,30003297,"5,151,221.53",Statistical Services,Large,Programme Expenditure
UK Statistics Family,Office for National Statistics,28/02/2022,Prepayments - Titchfield Postage Meter,Postage,Pitney Bowes Ltd,30003299,"109,799.50",Postage Services,Large,Programme Expenditure
UK Statistics Family,Office for National Statistics,28/02/2022,Exp - Purchase Of Goods/Services - Incentive Payments,Covid Infection Survey,Sodexo Motivation Solutions U.K. ltd,30003300,"3,884,415.67",Survey Response Incentive Vouchers,Large,Programme Expenditure
UK Statistics Family,Office for National Statistics,28/02/2022,Exp - Purchase Of Goods/Services - Incentive Payments,Covid Infection Survey,Sodexo Motivation Solutions U.K. ltd,30003301,"133,724.95",Survey Response Incentive Vouchers,Large,Programme Expenditure
UK Statistics Family,Office for National Statistics,28/02/2022,"ICT Outsourcing, Maintenance And Support",IT Operations,Clearvision-Cm,30003302,"240,918.62",Software Licenses,SME,Programme Expenditure
UK Statistics Family,Office for National Statistics,28/02/2022,Surveys,Social Surveys Division,Nisra,30003303,"127,951.22",Statistical Services,Large,Programme Expenditure
UK Statistics Family,Office for National Statistics,28/02/2022,Software Licences At Cost - Additions,IT Operations,Scc,30003304,"125,197.25",Software Licenses,Large,Programme Expenditure
UK Statistics Family,Office for National Statistics,28/02/2022,Exp - Purchase Of Goods/Services - IT Contractual Services,Digital Publishing,Swirrl It Ltd,30003305,"71,640.00",Information Management Services,SME,Programme Expenditure
UK Statistics Family,Office for National Statistics,28/02/2022,Exp - Purchase Of Goods And Services Consultants,2023 CENSUS DATA TRANSFORMATION,The Sensible Code Company,30003306,"122,521.20",Consultancy,SME,Programme Expenditure
UK Statistics Family,Office for National Statistics,28/02/2022,Exp - Purchase Of Goods/Services - Contractors,Business Architecture,Certes Computing Ltd,30003307,"15,600.00",Information Management Services,SME,Programme Expenditure
UK Statistics Family,Office for National Statistics,28/02/2022,Exp - Purchase Of Goods/Services - Contractors,Testing,Certes Computing Ltd,30003307,"13,066.08",Information Management Services,SME,Programme Expenditure
UK Statistics Family,Office for National Statistics,28/02/2022,Exp - Purchase Of Goods/Services - Contractors,Strategy And Architecture,Certes Computing Ltd,30003307,"17,160.72",Information Management Services,SME,Programme Expenditure
UK Statistics Family,Office for National Statistics,28/02/2022,Exp - Purchase Of Goods/Services - Contractors,Digital Delivery,Certes Computing Ltd,30003307,"31,512.79",Information Management Services,SME,Programme Expenditure
UK Statistics Family,Office for National Statistics,28/02/2022,Exp - Short-Term Contract & Agency Staff - Full Cost,Covid Infection Survey,Concept Information Technology Ltd T/A Concept Resourcing,30003308,"1,451.87",Information Management Services,Large,Programme Expenditure
UK Statistics Family,Office for National Statistics,28/02/2022,Exp - Short-Term Contract & Agency Staff - Full Cost,Business Change Support,Concept Information Technology Ltd T/A Concept Resourcing,30003308,"10,095.99",Information Management Services,Large,Programme Expenditure
UK Statistics Family,Office for National Statistics,28/02/2022,Exp - Short-Term Contract & Agency Staff - Full Cost,Business Change Support,Concept Information Technology Ltd T/A Concept Resourcing,30003308,"12,582.56",Information Management Services,Large,Programme Expenditure
UK Statistics Family,Office for National Statistics,28/02/2022,Exp - Short-Term Contract & Agency Staff - Full Cost,Business Change Support,Concept Information Technology Ltd T/A Concept Resourcing,30003308,"5,560.03",Information Management Services,Large,Programme Expenditure
UK Statistics Family,Office for National Statistics,28/02/2022,Exp - Short-Term Contract & Agency Staff - Full Cost,Business Change Support,Concept Information Technology Ltd T/A Concept Resourcing,30003308,"4,537.82",Information Management Services,Large,Programme Expenditure
UK Statistics Family,Office for National Statistics,28/02/2022,Exp - Short-Term Contract & Agency Staff - Full Cost,Business Change Support,Concept Information Technology Ltd T/A Concept Resourcing,30003308,"5,560.03",Information Management Services,Large,Programme Expenditure
UK Statistics Family,Office for National Statistics,28/02/2022,Exp - Short-Term Contract & Agency Staff - Full Cost,Business Change Support,Concept Information Technology Ltd T/A Concept Resourcing,30003308,"9,584.55",Information Management Services,Large,Programme Expenditure
UK Statistics Family,Office for National Statistics,28/02/2022,Exp - Short-Term Contract & Agency Staff - Full Cost,Business Change Support,Concept Information Technology Ltd T/A Concept Resourcing,30003308,"8,246.57",Information Management Services,Large,Programme Expenditure
UK Statistics Family,Office for National Statistics,28/02/2022,Exp - Short-Term Contract & Agency Staff - Full Cost,International Trade And Transactions,Concept Information Technology Ltd T/A Concept Resourcing,30003308,4605.54,Information Management Services,Large,Programme Expenditure
UK Statistics Family,Office for National Statistics,28/02/2022,Exp - Short-Term Contract & Agency Staff - Full Cost,International Trade And Transactions,Concept Information Technology Ltd T/A Concept Resourcing,30003308,"4,143.04",Information Management Services,Large,Programme Expenditure
UK Statistics Family,Office for National Statistics,28/02/2022,Exp - Short-Term Contract & Agency Staff - Full Cost,International Trade And Transactions,Concept Information Technology Ltd T/A Concept Resourcing,30003308,"27,197.57",Information Management Services,Large,Programme Expenditure
UK Statistics Family,Office for National Statistics,28/02/2022,Exp - Short-Term Contract & Agency Staff - Full Cost,Business Architecture Transformation And Statistical Strategy,Concept Information Technology Ltd T/A Concept Resourcing,30003308,"4,132.46",Information Management Services,Large,Programme Expenditure
UK Statistics Family,Office for National Statistics,28/02/2022,Exp - Short-Term Contract & Agency Staff - Full Cost,Public Sector And Households,Concept Information Technology Ltd T/A Concept Resourcing,30003308,"3,606.89",Information Management Services,Large,Programme Expenditure
UK Statistics Family,Office for National Statistics,28/02/2022,Exp - Short-Term Contract & Agency Staff - Full Cost,Data As A Service,Concept Information Technology Ltd T/A Concept Resourcing,30003308,4424.65,Information Management Services,Large,Programme Expenditure
UK Statistics Family,Office for National Statistics,28/02/2022,Exp - Short-Term Contract & Agency Staff - Full Cost,Business Statistics Transformation,Concept Information Technology Ltd T/A Concept Resourcing,30003308,"10,887.13",Information Management Services,Large,Programme Expenditure
UK Statistics Family,Office for National Statistics,28/02/2022,Exp - Purchase Of Goods/Services - Contractors,2023 CENSUS DATA TRANSFORMATION,La International,30003309,"12,190.82",Information Management Services,SME,Programme Expenditure
UK Statistics Family,Office for National Statistics,28/02/2022,Exp - Purchase Of Goods/Services - Contractors,Testing,La International,30003309,"50,454.36",Information Management Services,SME,Programme Expenditure
UK Statistics Family,Office for National Statistics,28/02/2022,Exp - Purchase Of Goods/Services - Contractors,Testing,La International,30003309,"8,388.00",Information Management Services,SME,Programme Expenditure
UK Statistics Family,Office for National Statistics,28/02/2022,Exp - Purchase Of Goods/Services - Contractors,Testing,La International,30003309,14270.6,Information Management Services,SME,Programme Expenditure
UK Statistics Family,Office for National Statistics,28/02/2022,Exp - Purchase Of Goods/Services - Contractors,Consultancy Management,La International,30003309,"5,023.62",Information Management Services,SME,Programme Expenditure
UK Statistics Family,Office for National Statistics,28/02/2022,Exp - Purchase Of Goods/Services - Contractors,Consultancy Management,La International,30003309,"7,176.60",Information Management Services,SME,Programme Expenditure
UK Statistics Family,Office for National Statistics,28/02/2022,Exp - Purchase Of Goods/Services - Contractors,Covid Infection Survey,La International,30003309,"6,635.30",Information Management Services,SME,Programme Expenditure
UK Statistics Family,Office for National Statistics,28/02/2022,Exp - Purchase Of Goods/Services - Contractors,Digital Publishing,La International,30003309,"23,997.08",Information Management Services,SME,Programme Expenditure
UK Statistics Family,Office for National Statistics,28/02/2022,Exp - Purchase Of Goods/Services - Contractors,STRATEGY SYNTHESIS AND CO-ORDINATION,La International,30003309,2525.52,Information Management Services,SME,Programme Expenditure
UK Statistics Family,Office for National Statistics,28/02/2022,Exp - Purchase Of Goods/Services - Contractors,Data Architecture,La International,30003309,826.24,Information Management Services,SME,Programme Expenditure
UK Statistics Family,Office for National Statistics,28/02/2022,Exp - Purchase Of Goods/Services - Contractors,Data Architecture,La International,30003309,"43,009.46",Information Management Services,SME,Programme Expenditure
UK Statistics Family,Office for National Statistics,28/02/2022,Exp - Purchase Of Goods/Services - Contractors,Data Architecture,La International,30003309,"12,843.54",Information Management Services,SME,Programme Expenditure
UK Statistics Family,Office for National Statistics,28/02/2022,Exp - Purchase Of Goods/Services - Contractors,CLOUD ARCHITECTURE,La International,30003309,"16,019.28",Information Management Services,SME,Programme Expenditure
UK Statistics Family,Office for National Statistics,28/02/2022,Exp - Purchase Of Goods/Services - Contractors,Tech Delivery Data As A Platform,La International,30003309,"8,330.04",Information Management Services,SME,Programme Expenditure
UK Statistics Family,Office for National Statistics,28/02/2022,Exp - Purchase Of Goods/Services - Contractors,Tech Delivery Data As A Platform,La International,30003309,"3,981.18",Information Management Services,SME,Programme Expenditure
UK Statistics Family,Office for National Statistics,28/02/2022,Exp - Purchase Of Goods/Services - Contractors,Tech Delivery Data As A Platform,La International,30003309,"19,109.66",Information Management Services,SME,Programme Expenditure
UK Statistics Family,Office for National Statistics,28/02/2022,Exp - Purchase Of Goods/Services - Contractors,IT Applications,La International,30003309,"11,565.84",Information Management Services,SME,Programme Expenditure
UK Statistics Family,Office for National Statistics,28/02/2022,Exp - Purchase Of Goods/Services - Contractors,IT Operations,La International,30003309,"4,340.16",Information Management Services,SME,Programme Expenditure
UK Statistics Family,Office for National Statistics,28/02/2022,Exp - Purchase Of Goods/Services - Contractors,Office Of Chief Data And Information,La International,30003309,479.52,Information Management Services,SME,Programme Expenditure
UK Statistics Family,Office for National Statistics,28/02/2022,Exp - Purchase Of Goods/Services - Contractors,Digital Delivery,La International,30003309,"11,482.56",Information Management Services,SME,Programme Expenditure
UK Statistics Family,Office for National Statistics,28/02/2022,Exp - Purchase Of Goods/Services - Incentive Payments,Covid Infection Survey,Sodexo Motivation Solutions U.K. ltd,30003310,"189,472.57",Survey Response Incentive Vouchers,Large,Programme Expenditure
UK Statistics Family,Office for National Statistics,28/02/2022,Exp - Purchase Of Goods/Services - Incentive Payments,GSS Strategy Delivery,Sodexo Motivation Solutions U.K. ltd,30003310,9.87,Survey Response Incentive Vouchers,Large,Programme Expenditure
UK Statistics Family,Office for National Statistics,28/02/2022,Exp - Purchase Of Goods/Services - IT Contractual Services,Tech Delivery Data As A Platform,Kainos,30003311,"38,895.17",Information Management Services,Large,Programme Expenditure
,,,,,,,"55,034,869.93",,,
